fUSD/lending_fUSD_20260217
["ID","MTS","AMOUNT","RATE_DAILY","PERIOD"]
[405854355,1771363840800,-500.0,0.00010764,3]
[405854356,1771363840810,-554.0,0.00010764,3]
[405854357,1771363840820,-210.76125773,0.00010769,2]
[405854358,1771363840830,-500.0,0.00010769,2]
[405854359,1771363840840,-500.0,0.00010769,2]
[405854360,1771363840850,-500.0,0.00010769,2]
[405854361,1771363840860,-200.0,0.00010769,2]
[405854362,1771363840870,-500.0,0.00010769,2]
[405854363,1771363840880,-500.0,0.00010769,2]
[405854364,1771363840890,-500.0,0.00010769,2]
[405854365,1771363840900,-166.66,0.00010783,2]
[405854366,1771363840911,-214297.0,0.000108,2]
[405854367,1771363840920,-150.0,0.00010814,2]
[405854368,1771363840930,-500.0,0.00010814,2]
[405854369,1771363840940,-361.9355564,0.00010819,3]
[405854370,1771363840950,-500.0,0.00010819,3]
[405854371,1771363840960,-500.0,0.00010819,3]
[405854372,1771363840971,-554.0,0.00010819,3]
[405854373,1771363840980,-500.0,0.00010823,2]
[405854374,1771363840990,-471.12228144,0.00010823,2]
[405854375,1771363841000,-500.0,0.00010823,2]
[405854376,1771363841010,-475.49905426,0.00010823,2]
[405854377,1771363841020,-500.0,0.00010823,2]
[405854379,1771363841030,-500.0,0.00010823,2]
[405854380,1771363841039,-150.0,0.00010869,2]
[405854381,1771363841052,-500.0,0.00010869,2]
[405854382,1771363841062,-500.0,0.00010874,3]
[405854383,1771363841073,-500.0,0.00010874,3]
[405854384,1771363841082,-554.0,0.00010874,3]
[405854385,1771363841092,-500.0,0.00010878,2]
[405854386,1771363841102,-500.0,0.00010878,2]
[405854387,1771363841112,-500.0,0.00010878,2]
[405854388,1771363841122,-500.0,0.00010878,2]
[405854389,1771363841132,-500.0,0.00010891,2]
[405854390,1771363841142,-13900.0,0.000109,3]
[405854391,1771363841151,-5019.02576735,0.000109,2]
[405854392,1771363841161,-150.0,0.00010923,2]
[405854393,1771363841172,-500.0,0.00010923,2]
[405854394,1771363841182,-500.0,0.00010926,2]
[405854395,1771363841193,-150.0,0.00010926,2]
[405854396,1771363841203,-500.0,0.00010926,2]
[405854397,1771363841213,-500.0,0.00010926,2]
[405854398,1771363841223,-150.0,0.00010926,2]
[405854399,1771363841233,-150.0,0.00010926,2]
[405854400,1771363841243,-150.0,0.00010926,2]
[405854401,1771363841253,-150.0,0.00010926,2]
[405854402,1771363841264,-500.0,0.00010926,2]
[405854403,1771363841274,-150.0,0.00010926,2]
[405854404,1771363841285,-500.0,0.00010926,2]
[405854405,1771363841297,-1009.2,0.00010926,2]
[405854406,1771363841308,-500.0,0.00010929,3]
[405854407,1771363841318,-498.26652801,0.00010929,3]
[405854408,1771363841330,-554.0,0.00010929,3]
[405854409,1771363841352,-500.0,0.00010933,2]
[405854410,1771363841364,-500.0,0.00010933,2]
[405854411,1771363841376,-500.0,0.00010933,2]
[405854412,1771363841386,-500.0,0.00010933,2]
[405854413,1771363841397,-255.0,0.00010943,2]
[405854414,1771363841408,-151.0,0.00010959,4]
[405854415,1771363841419,-184.46,0.00010959,2]
[405854416,1771363841429,-16891.69,0.00010959,2]
[405854417,1771363841440,-229.95129651,0.00010978,2]
[405854418,1771363841450,-500.0,0.00010978,2]
[405854419,1771363841461,-500.0,0.00010981,2]
[405854420,1771363841471,-150.0,0.00010981,2]
[405854421,1771363841483,-500.0,0.00010981,2]
[405854422,1771363841493,-244.28993987,0.00010981,2]
[405854423,1771363841504,-500.0,0.00010981,2]
[405854424,1771363841514,-150.0,0.00010981,2]
[405854425,1771363841524,-150.0,0.00010981,2]
[405854426,1771363841535,-150.0,0.00010981,2]
[405854427,1771363841544,-500.0,0.00010981,2]
[405854428,1771363841554,-205.12968692,0.00010981,2]
[405854429,1771363841564,-649.65624143,0.00010981,2]
[405854430,1771363841575,-611.76249723,0.00010984,3]
[405854431,1771363841585,-554.0,0.00010984,3]
[405854432,1771363841595,-500.0,0.00010988,2]
[405854433,1771363841605,-500.0,0.00010988,2]
[405854434,1771363841615,-500.0,0.00010988,2]
[405854435,1771363841625,-500.0,0.00010988,2]
[405854436,1771363841635,-6034.81891893,0.00011,2]
[405854437,1771363841646,-32850.4601,0.00011033,2]
[405854438,1771363841656,-1000.0,0.00011033,2]
[405854439,1771363841666,-4587.476,0.00011033,2]
[405854440,1771363841677,-10000.0,0.00011033,2]
[405854441,1771363841691,-105633.56125678,0.00011033,2]
[405854442,1771363841908,-556434.60624322,0.00011033,2]
[405854443,1771363841918,-951.6545,0.00011033,2]
[405854444,1771363841929,-259.7041,0.00011033,2]
[405854445,1771363841940,-205.81655615,0.00011033,2]
[405854446,1771363841950,-220.15883999,0.00011036,2]
[405854447,1771363841961,-150.0,0.00011036,2]
[405854448,1771363841971,-152.12850518,0.00011036,2]
[405854449,1771363841982,-500.0,0.00011036,2]
[405854450,1771363841993,-150.0,0.00011036,2]
[405854451,1771363842003,-200.36674187,0.00011036,2]
[405854452,1771363842015,-200.18645604,0.00011036,2]
[405854453,1771363842025,-500.0,0.00011036,2]
[405854454,1771363842039,-554.0,0.00011038,3]
[405854455,1771363842050,-500.0,0.00011043,2]
[405854456,1771363842061,-500.0,0.00011043,2]
[405854457,1771363842071,-500.0,0.00011043,2]
[405854458,1771363842082,-500.0,0.00011043,2]
[405854459,1771363842094,-5019.02576734,0.00011085,2]
[405854460,1771363842104,-295.69274942,0.0001109,2]
[405854461,1771363842114,-500.0,0.0001109,2]
[405854462,1771363842125,-200.89245722,0.0001109,2]
[405854463,1771363842135,-500.0,0.0001109,2]
[405854464,1771363842146,-554.0,0.00011093,3]
[405854465,1771363842156,-500.0,0.00011097,2]
[405854466,1771363842167,-500.0,0.00011097,2]
[405854467,1771363842177,-500.0,0.00011097,2]
[405854468,1771363842187,-500.0,0.00011097,2]
[405854469,1771363842198,-46546.29107829,0.00011099,2]
[405854470,1771363842208,-46546.29107822,0.00011099,2]
[405854471,1771363842219,-46546.29107822,0.00011099,2]
[405854472,1771363842229,-68837.47701458,0.00011099,2]
[405854473,1771363842239,-68837.47701454,0.00011099,2]
[405854474,1771363842250,-68837.47701454,0.00011099,2]
[405854475,1771363842262,-68837.47701454,0.00011099,2]
[405854476,1771363842273,-68837.47701454,0.00011099,2]
[405854477,1771363842283,-68837.47701454,0.00011099,2]
[405854478,1771363842297,-68837.47701454,0.00011099,2]
[405854479,1771363842307,-5530.0,0.000111,3]
[405854480,1771363842319,-166.66,0.00011107,2]
[405854481,1771363842330,-200.0,0.00011142,2]
[405854482,1771363842341,-500.0,0.00011142,2]
[405854483,1771363842352,-200.0,0.00011142,2]
[405854484,1771363842363,-500.0,0.00011145,2]
[405854485,1771363842375,-500.0,0.00011145,2]
[405854486,1771363842387,-554.0,0.00011148,3]
[405854487,1771363842402,-500.0,0.00011152,2]
[405854488,1771363842414,-500.0,0.00011152,2]
[405854489,1771363842805,-500.0,0.00011152,2]
[405854490,1771363842815,-500.0,0.00011152,2]
[405854491,1771363842825,-500.0,0.00011165,2]
[405854492,1771363842835,-68837.47701454,0.00011168,2]
[405854493,1771363842845,-500.0,0.000112,2]
[405854494,1771363842854,-500.0,0.000112,2]
[405854495,1771363842863,-161.35,0.000112,2]
[405854496,1771363842873,-1009.2,0.000112,2]
[405854497,1771363842882,-554.0,0.00011203,3]
[405854498,1771363842892,-292.49812506,0.00011207,2]
[405854499,1771363842901,-500.0,0.00011207,2]
[405854500,1771363842910,-224.65460803,0.00011207,2]
[405854501,1771363842920,-630.25617345,0.00011255,2]
[405854502,1771363842930,-382.17209928,0.00011255,2]
[405854503,1771363842940,-554.0,0.00011258,3]
[405854504,1771363842950,-500.0,0.00011262,2]
[405854505,1771363842960,-554.0,0.00011312,3]
[405854506,1771363842969,-500.0,0.00011317,2]
[405854507,1771363842979,-68837.47701454,0.00011335,2]
[405854508,1771363842989,-554.0,0.00011367,3]
[405854509,1771363842999,-500.0,0.00011371,2]
[405854510,1771363843008,-500.0,0.00011408,2]
[405854511,1771363843018,-500.0,0.00011408,2]
[405854512,1771363843027,-554.0,0.00011422,3]
[405854513,1771363843036,-500.0,0.00011426,2]
[405854514,1771363843046,-166.66,0.00011431,2]
[405854515,1771363843056,-1000.0,0.00011438,2]
[405854516,1771363843066,-500.0,0.00011439,2]
[405854517,1771363843076,-500.0,0.00011463,2]
[405854518,1771363843086,-500.0,0.00011463,2]
[405854519,1771363843096,-1009.2,0.00011474,2]
[405854520,1771363843105,-554.0,0.00011477,3]
[405854521,1771363843115,-280.68179644,0.00011481,2]
[405854522,1771363843124,-5530.0,0.000115,5]
[405854523,1771363843134,-68837.47701454,0.00011501,2]
[405854524,1771363843144,-500.0,0.00011518,2]
[405854525,1771363843154,-500.0,0.00011518,2]
[405854526,1771363843164,-554.0,0.00011531,3]
[405854527,1771363843173,-153.2248447,0.00011572,2]
[405854528,1771363843183,-500.0,0.00011572,2]
[405854529,1771363843193,-566.2655769,0.00011586,3]
[405854530,1771363843203,-500.0,0.00011627,2]
[405854531,1771363843212,-500.0,0.00011682,2]
[405854532,1771363843222,-200.0,0.0001169,2]
[405854533,1771363843232,-500.0,0.0001169,2]
[405854534,1771363843242,-200.0,0.0001169,2]
[405854535,1771363843252,-500.0,0.00011713,2]
[405854536,1771363843263,-2351.0,0.00011736,2]
[405854537,1771363843273,-163.51122534,0.00011737,2]
[405854538,1771363843283,-1009.2,0.00011748,2]
[405854539,1771363843295,-1066.36814864,0.0001175,2]
[405854541,1771363843305,-2700.0,0.000119,4]
[405854543,1771363843315,-500.0,0.00011987,2]
[405854544,1771363843325,-1009.2,0.00012022,2]
[405854545,1771363843335,-433.0,0.00012037,2]
[405854546,1771363843345,-23006.18,0.00012055,2]
[405854547,1771363843355,-500.0,0.00012173,2]
[405854549,1771363843366,-500.0,0.00012173,2]
[405854550,1771363843376,-164.61380668,0.00012173,2]
[405854551,1771363843386,-500.0,0.00012173,2]
[405854552,1771363843396,-500.0,0.00012173,2]
[405854553,1771363843406,-500.0,0.00012173,2]
[405854554,1771363843416,-500.0,0.00012173,2]
[405854555,1771363843426,-500.0,0.00012173,2]
[405854556,1771363843436,-500.0,0.00012173,2]
[405854557,1771363843446,-500.0,0.00012173,2]
[405854558,1771363843456,-500.0,0.00012173,2]
[405854559,1771363843467,-500.0,0.00012173,2]
[405854560,1771363843478,-500.0,0.00012173,2]
[405854561,1771363843487,-500.0,0.00012173,2]
[405854562,1771363843497,-160.1837527,0.00012173,2]
[405854563,1771363843507,-160.37289206,0.00012173,2]
[405854565,1771363843517,-500.0,0.00012173,2]
[405854567,1771363843528,-163.58520611,0.00012173,2]
[405854569,1771363843538,-500.0,0.00012173,2]
[405854571,1771363843548,-500.0,0.00012173,2]
[405854572,1771363843557,-500.0,0.00012173,2]
[405854573,1771363843567,-545.77855618,0.00012173,2]
[405854574,1771363843578,-500.0,0.00012173,2]
[405854575,1771363843587,-500.0,0.00012173,2]
[405854576,1771363843597,-500.0,0.00012173,2]
[405854577,1771363843606,-500.0,0.00012173,2]
[405854578,1771363843616,-166.78412047,0.00012173,2]
[405854579,1771363843627,-500.0,0.00012173,2]
[405854580,1771363843639,-500.46642231,0.00012173,2]
[405854581,1771363843650,-500.0,0.00012173,2]
[405854582,1771363843661,-500.0,0.00012173,2]
[405854583,1771363843671,-500.0,0.00012173,2]
[405854584,1771363843681,-500.0,0.00012173,2]
[405854585,1771363843690,-500.0,0.00012173,2]
[405854586,1771363843700,-500.62727143,0.00012173,2]
[405854587,1771363843710,-500.0,0.00012173,2]
[405854588,1771363843720,-500.0,0.00012173,2]
[405854589,1771363843730,-218.33608313,0.00012173,2]
[405854590,1771363843740,-500.0,0.00012173,2]
[405854591,1771363843749,-500.0,0.00012173,2]
[405854592,1771363843759,-500.0,0.00012173,2]
[405854593,1771363843768,-5019.02576734,0.00012221,2]
[405854594,1771363843777,-200.0,0.00012238,2]
[405854595,1771363843787,-500.0,0.00012238,2]
[405854596,1771363843796,-218.04759767,0.00012238,2]
[405854597,1771363843806,-500.0,0.00012261,2]
[405854598,1771363843816,-173.57638878,0.00012292,2]
[405854599,1771363843825,-160.0,0.00012292,2]
[405854600,1771363843835,-1009.2,0.00012296,2]
[405854601,1771363843844,-450.0,0.000125,7]
[405854602,1771363843854,-308.39558699,0.000125,2]
[405854603,1771363843863,-500.0,0.00012535,2]
[405854604,1771363843874,-1009.2,0.0001257,2]
[405854605,1771363843883,-1000.0,0.00012709,2]
[405854606,1771363843892,-1000.0,0.00012721,2]
[405854607,1771363843902,-1000.0,0.00012721,2]
[405854608,1771363843912,-1002.81524174,0.00012721,2]
[405854610,1771363843921,-228.57891647,0.00012721,2]
[405854612,1771363843931,-571.65229745,0.00012721,2]
[405854614,1771363843940,-544.40507509,0.00012721,2]
[405854616,1771363843949,-1000.0,0.00012721,2]
[405854618,1771363843959,-1000.0,0.00012721,2]
[405854619,1771363843968,-1000.0,0.00012721,2]
[405854620,1771363843978,-1000.0,0.00012721,2]
[405854621,1771363843988,-1013.94571317,0.00012721,2]
[405854622,1771363843998,-1000.0,0.00012721,2]
[405854623,1771363844008,-1000.0,0.00012721,2]
[405854624,1771363844018,-928.11420057,0.00012721,2]
[405854625,1771363844027,-1000.0,0.00012721,2]
[405854626,1771363844037,-509.22256369,0.00012721,2]
[405854627,1771363844047,-500.0,0.00012721,2]
[405854628,1771363844057,-1000.0,0.00012721,2]
[405854629,1771363844066,-1000.0,0.00012721,2]
[405854630,1771363844076,-1000.0,0.00012721,2]
[405854631,1771363844085,-501.82748142,0.00012721,2]
[405854632,1771363844096,-1000.0,0.00012721,2]
[405854633,1771363844105,-1000.0,0.00012721,2]
[405854634,1771363844114,-306.10762696,0.00012721,2]
[405854635,1771363844123,-1000.0,0.00012721,2]
[405854636,1771363844133,-1000.0,0.00012721,2]
[405854637,1771363844143,-1000.0,0.00012721,2]
[405854638,1771363844152,-1071.24633497,0.00012721,2]
[405854639,1771363844162,-615.3930462,0.00012721,2]
[405854640,1771363844171,-1000.0,0.00012721,2]
[405854641,1771363844181,-500.0,0.00012786,2]
[405854642,1771363844191,-200.0,0.00012786,2]
[405854644,1771363844201,-500.0,0.00012809,2]
[405854646,1771363844211,-1009.2,0.00012844,2]
[405854648,1771363844220,-119222.30808405,0.000129,2]
[405854650,1771363844230,-3292.0,0.00012909,2]
[405854651,1771363844239,-1066.36814864,0.0001298,2]
[405854652,1771363844248,-5623.26156693,0.00013,2]
[405854653,1771363844258,-5362.79805645,0.0001305,2]
[405854654,1771363844268,-500.0,0.00013083,2]
[405854655,1771363844277,-1009.2,0.00013118,2]
[405854656,1771363844287,-284.61,0.00013186,2]
[405854657,1771363844302,-184.6,0.00013223,2]
[405854658,1771363844312,-2354.93,0.00013238,2]
[405854659,1771363844322,-736.0,0.00013241,2]
[405854660,1771363844332,-744.95097778,0.00013268,2]
[405854661,1771363844342,-1500.0,0.00013268,2]
[405854662,1771363844351,-1500.0,0.00013268,2]
[405854663,1771363844362,-623.71743587,0.00013268,2]
[405854664,1771363844372,-806.86059886,0.00013268,2]
[405854665,1771363844382,-616.56100589,0.00013268,2]
[405854666,1771363844392,-1500.0,0.00013268,2]
[405854668,1771363844401,-1500.0,0.00013268,2]
[405854669,1771363844411,-1500.0,0.00013268,2]
[405854670,1771363844420,-592.40967882,0.00013268,2]
[405854672,1771363844430,-1500.0,0.00013268,2]
[405854674,1771363844440,-1500.0,0.00013268,2]
[405854676,1771363844450,-1500.0,0.00013268,2]
[405854678,1771363844459,-932.93855102,0.00013268,2]
[405854679,1771363844468,-344.71223806,0.00013268,2]
[405854680,1771363844479,-1000.0,0.00013268,2]
[405854681,1771363844488,-1513.76878479,0.00013268,2]
[405854682,1771363844498,-1500.0,0.00013268,2]
[405854683,1771363844507,-500.0,0.00013334,2]
[405854684,1771363844517,-200.0,0.00013334,2]
[405854685,1771363844527,-5019.02576734,0.00013357,2]
[405854686,1771363844537,-500.0,0.00013357,2]
[405854687,1771363844547,-1009.2,0.00013392,2]
[405854688,1771363844556,-943.7211497,0.00013425,2]
[405854689,1771363844566,-3240.0,0.00013425,2]
[405854690,1771363844575,-1000.0,0.00013448,2]
[405854691,1771363844584,-151.0,0.00013452,4]
[405854692,1771363844594,-1000.0,0.000135,2]
[405854693,1771363844604,-500.0,0.00013631,2]
[405854694,1771363844614,-1009.2,0.00013666,2]
[405854695,1771363844623,-1454.86007664,0.00013688,2]
[405854696,1771363844633,-172.09485914,0.00013698,2]
[405854697,1771363844643,-607.92,0.00013698,2]
[405854698,1771363844653,-607.92,0.00013698,2]
[405854699,1771363844662,-607.92,0.00013698,2]
[405854700,1771363844672,-607.92,0.00013698,2]
[405854701,1771363844682,-607.92,0.00013698,2]
[405854702,1771363844691,-607.92,0.00013698,2]
[405854703,1771363844701,-607.92,0.00013698,2]
[405854704,1771363844711,-607.92,0.00013698,2]
[405854705,1771363844720,-607.92,0.00013698,2]
[405854706,1771363844730,-607.92,0.00013698,2]
[405854707,1771363844740,-607.92,0.00013698,2]
[405854708,1771363844750,-607.92,0.00013698,2]
[405854709,1771363844760,-607.92,0.00013698,2]
[405854710,1771363844770,-607.92,0.00013698,2]
[405854711,1771363844779,-607.92,0.00013698,2]
[405854712,1771363844789,-607.92,0.00013698,2]
[405854713,1771363844799,-607.92,0.00013698,2]
[405854714,1771363844809,-607.92,0.00013698,2]
[405854715,1771363844818,-607.92,0.00013698,2]
[405854716,1771363844828,-607.92,0.00013698,2]
[405854717,1771363844838,-607.92,0.00013698,2]
[405854718,1771363844847,-607.92,0.00013698,2]
[405854719,1771363844857,-607.92,0.00013698,2]
[405854720,1771363844867,-607.92,0.00013698,2]
[405854721,1771363844876,-1139.08,0.00013698,2]
[405854722,1771363844886,-1139.08,0.00013698,2]
[405854723,1771363844895,-1139.08,0.00013698,2]
[405854724,1771363844905,-1139.08,0.00013698,2]
[405854725,1771363844915,-1139.08,0.00013698,2]
[405854726,1771363844924,-1139.08,0.00013698,2]
[405854727,1771363844934,-1139.08,0.00013698,2]
[405854728,1771363844944,-1139.08,0.00013698,2]
[405854729,1771363844953,-1139.08,0.00013698,2]
[405854730,1771363844962,-1139.08,0.00013698,2]
[405854731,1771363844972,-1139.08,0.00013698,2]
[405854732,1771363844981,-1139.08,0.00013698,2]
[405854733,1771363844990,-1139.08,0.00013698,2]
[405854734,1771363845000,-1139.08,0.00013698,2]
[405854735,1771363845009,-1139.08,0.00013698,2]
[405854736,1771363845019,-1139.08,0.00013698,2]
[405854737,1771363845031,-1139.08,0.00013698,2]
[405854738,1771363845041,-1139.08,0.00013698,2]
[405854739,1771363845051,-1139.08,0.00013698,2]
[405854740,1771363845062,-1139.08,0.00013698,2]
[405854741,1771363845072,-1139.08,0.00013698,2]
[405854742,1771363845082,-1139.08,0.00013698,2]
[405854743,1771363845091,-1139.08,0.00013698,2]
[405854744,1771363845101,-1139.2,0.00013698,2]
[405854745,1771363845111,-500.0,0.00013698,2]
[405854746,1771363845124,-500.0,0.00013698,2]
[405854747,1771363845134,-500.0,0.00013698,2]
[405854748,1771363845144,-500.0,0.00013698,2]
[405854749,1771363845154,-500.0,0.00013698,2]
[405854750,1771363845164,-500.0,0.00013698,2]
[405854751,1771363845174,-500.0,0.00013698,2]
[405854752,1771363845283,-500.0,0.00013698,2]
[405854753,1771363845297,-500.0,0.00013698,2]
[405854754,1771363845307,-391.46615766,0.00013698,2]
[405854755,1771363845317,-2052.7,0.00013698,2]
[405854756,1771363845326,-2052.7,0.00013698,2]
[405854757,1771363845337,-2052.7,0.00013698,2]
[405854758,1771363845347,-2052.7,0.00013698,2]
[405854759,1771363845356,-2052.7,0.00013698,2]
[405854760,1771363845365,-2052.7,0.00013698,2]
[405854761,1771363845377,-2052.7,0.00013698,2]
[405854762,1771363845386,-2052.7,0.00013698,2]
[405854763,1771363845396,-2052.7,0.00013698,2]
[405854764,1771363845405,-2052.7,0.00013698,2]
[405854765,1771363845415,-2052.7,0.00013698,2]
[405854766,1771363845424,-2052.7,0.00013698,2]
[405854767,1771363845435,-2052.7,0.00013698,2]
[405854768,1771363845445,-2052.7,0.00013698,2]
[405854769,1771363845455,-2052.7,0.00013698,2]
[405854770,1771363845464,-2052.7,0.00013698,2]
[405854771,1771363845473,-2052.7,0.00013698,2]
[405854772,1771363845483,-2052.7,0.00013698,2]
[405854773,1771363845493,-2052.7,0.00013698,2]
[405854774,1771363845502,-2052.7,0.00013698,2]
[405854775,1771363845511,-2052.7,0.00013698,2]
[405854776,1771363845521,-2052.7,0.00013698,2]
[405854777,1771363845531,-2052.7,0.00013698,2]
[405854778,1771363845540,-2052.77678348,0.00013698,2]
[405854779,1771363845549,-500.0,0.00013698,2]
[405854780,1771363845559,-500.0,0.00013698,2]
[405854781,1771363845568,-509.4313423,0.00013698,2]
[405854782,1771363845578,-1013.23,0.00013698,2]
[405854783,1771363845588,-1013.23,0.00013698,2]
[405854784,1771363845597,-1013.23,0.00013698,2]
[405854785,1771363845607,-1013.23,0.00013698,2]
[405854786,1771363845618,-1013.23,0.00013698,2]
[405854787,1771363845627,-1013.23,0.00013698,2]
[405854788,1771363845637,-1013.23,0.00013698,2]
[405854789,1771363845646,-1013.23,0.00013698,2]
[405854790,1771363845655,-1013.23,0.00013698,2]
[405854791,1771363845665,-1013.23,0.00013698,2]
[405854792,1771363845674,-1013.23,0.00013698,2]
[405854793,1771363845686,-1013.23,0.00013698,2]
[405854794,1771363845695,-1013.23,0.00013698,2]
[405854795,1771363845705,-1013.23,0.00013698,2]
[405854796,1771363845715,-1013.23,0.00013698,2]
[405854797,1771363845724,-1013.23,0.00013698,2]
[405854798,1771363845734,-1013.23,0.00013698,2]
[405854799,1771363845744,-1013.23,0.00013698,2]
[405854800,1771363845754,-500.0,0.00013698,2]
[405854801,1771363845763,-500.0,0.00013698,2]
[405854802,1771363845773,-500.0,0.00013698,2]
[405854803,1771363845783,-500.0,0.00013698,2]
[405854804,1771363845793,-500.0,0.00013698,2]
[405854805,1771363845802,-536.56841648,0.00013698,2]
[405854806,1771363845812,-546.97,0.00013698,2]
[405854807,1771363845821,-546.97,0.00013698,2]
[405854808,1771363845831,-546.97,0.00013698,2]
[405854809,1771363845841,-546.97,0.00013698,2]
[405854810,1771363845850,-546.97,0.00013698,2]
[405854811,1771363845859,-546.97,0.00013698,2]
[405854812,1771363845869,-546.97,0.00013698,2]
[405854813,1771363845878,-546.97,0.00013698,2]
[405854814,1771363845888,-546.97,0.00013698,2]
[405854815,1771363845898,-546.97,0.00013698,2]
[405854816,1771363845907,-546.97,0.00013698,2]
[405854817,1771363845918,-546.97,0.00013698,2]
[405854818,1771363845927,-546.97,0.00013698,2]
[405854819,1771363845937,-546.97,0.00013698,2]
[405854820,1771363845947,-546.97,0.00013698,2]
[405854821,1771363845957,-546.97,0.00013698,2]
[405854822,1771363845966,-546.97,0.00013698,2]
[405854823,1771363845976,-546.97,0.00013698,2]
[405854824,1771363845986,-500.0,0.00013698,2]
[405854825,1771363845995,-500.0,0.00013698,2]
[405854826,1771363846004,-500.0,0.00013698,2]
[405854827,1771363846014,-500.0,0.00013698,2]
[405854828,1771363846023,-500.0,0.00013698,2]
[405854829,1771363846033,-500.0,0.00013698,2]
[405854830,1771363846043,-500.0,0.00013698,2]
[405854831,1771363846052,-500.0,0.00013698,2]
[405854832,1771363846062,-500.0,0.00013698,2]
[405854833,1771363846071,-500.0,0.00013698,2]
[405854834,1771363846081,-500.0,0.00013698,2]
[405854835,1771363846090,-500.0,0.00013698,2]
[405854836,1771363846100,-500.0,0.00013698,2]
[405854837,1771363846109,-500.0,0.00013698,2]
[405854838,1771363846118,-500.0,0.00013698,2]
[405854839,1771363846128,-500.0,0.00013698,2]
[405854840,1771363846138,-500.0,0.00013698,2]
[405854841,1771363846148,-500.0,0.00013698,2]
[405854842,1771363846158,-1479.1,0.00013698,2]
[405854844,1771363846167,-1479.1,0.00013698,2]
[405854846,1771363846177,-1479.1,0.00013698,2]
[405854848,1771363846186,-1479.1,0.00013698,2]
[405854850,1771363846196,-1479.1,0.00013698,2]
[405854851,1771363846206,-1479.1,0.00013698,2]
[405854852,1771363846215,-1479.1,0.00013698,2]
[405854853,1771363846225,-1479.1,0.00013698,2]
[405854854,1771363846235,-1479.1,0.00013698,2]
[405854855,1771363846244,-1479.1,0.00013698,2]
[405854856,1771363846254,-1479.1,0.00013698,2]
[405854857,1771363846263,-1479.1,0.00013698,2]
[405854858,1771363846272,-1479.1,0.00013698,2]
[405854859,1771363846282,-1479.1,0.00013698,2]
[405854860,1771363846292,-1479.1,0.00013698,2]
[405854861,1771363846305,-1479.1,0.00013698,2]
[405854862,1771363846314,-1479.1,0.00013698,2]
[405854863,1771363846323,-1479.1,0.00013698,2]
[405854864,1771363846333,-500.0,0.00013698,2]
[405854865,1771363846344,-500.0,0.00013698,2]
[405854866,1771363846353,-500.0,0.00013698,2]
[405854867,1771363846362,-500.0,0.00013698,2]
[405854868,1771363846372,-500.0,0.00013698,2]
[405854869,1771363846382,-500.0,0.00013698,2]
[405854870,1771363846392,-500.0,0.00013698,2]
[405854871,1771363846401,-500.0,0.00013698,2]
[405854872,1771363846411,-500.0,0.00013698,2]
[405854873,1771363846420,-500.0,0.00013698,2]
[405854874,1771363846429,-500.0,0.00013698,2]
[405854875,1771363846438,-500.0,0.00013698,2]
[405854876,1771363846448,-200.92210999,0.00013698,2]
[405854877,1771363846457,-1546.47,0.00013698,2]
[405854878,1771363846467,-1546.47,0.00013698,2]
[405854879,1771363846476,-1546.47,0.00013698,2]
[405854880,1771363846486,-1546.47,0.00013698,2]